fUSD/lending_fUSD_20241206
["ID","MTS","AMOUNT","RATE_DAILY","PERIOD"]
[344439636,1733465438230,-6797.229865,7e-05,2]
[344439637,1733465438337,-9315.63957483,7e-05,2]
[344439638,1733465438597,-117.04806035,7e-05,2]
[344439654,1733465438767,-4306.51393472,7e-05,2]
[344439661,1733465438820,-47250.0,7e-05,2]
[344439687,1733465440360,-780.175,7e-05,2]
[344439689,1733465443206,-1036.08000014,7e-05,2]
[344439690,1733465443400,-1000.39672629,7e-05,2]
[344439691,1733465443435,-4035.97271581,7e-05,2]
[344439692,1733465443542,-11672.7,7e-05,2]
[344439705,1733465446225,-36067.0747937,7e-05,2]
[344439706,1733465446238,-4800.55765487,7e-05,2]
[344439707,1733465446262,-435.13812,7e-05,2]
[344439708,1733465446371,-7806.17560541,7e-05,2]
[344439712,1733466316496,4051.7,0.00015,29]
[344439713,1733466426861,-162.72,5.898e-05,2]
[344439714,1733466426886,-166.87,5.915e-05,2]
[344439715,1733466426911,-611.98,5.954e-05,2]
[344439716,1733466426936,-250.0,5.998e-05,2]
[344439717,1733466426959,-300.0,6.077e-05,2]
[344439718,1733466426982,-9145.30930838,6.078e-05,2]
[344439719,1733466438197,-279.41899402,6.078e-05,2]
[344439720,1733466439140,-200.0,6e-05,2]
[344439721,1733466439164,-108.51964297,6.078e-05,2]
[344439743,1733466551099,-988.02,5.894e-05,2]
[344439744,1733466551120,-250.0,5.894e-05,2]
[344439745,1733466551141,-1710.98727476,6.078e-05,2]
[344439760,1733466631484,-23671.66103448,5.88e-05,2]
[344439777,1733466631682,-228.33896552,5.88e-05,2]
[344439778,1733466631692,-1917.73,5.936e-05,2]
[344439779,1733466631701,-797.29438274,5.978e-05,2]
[344439780,1733466631713,-369.86561726,5.978e-05,2]
[344439781,1733466631722,-150.35932617,6.078e-05,2]
[344439782,1733466631733,-250.0,6.082e-05,2]
[344439783,1733466631750,-500.0,6.1e-05,2]
[344439784,1733466631759,-700.0,6.2e-05,2]
[344439785,1733466631768,-500.0,6.219e-05,2]
[344439786,1733466631778,-1000.0,6.3e-05,2]
[344439787,1733466631788,-768.05,6.3e-05,2]
[344439788,1733466631796,-870.86,6.3e-05,2]
[344439789,1733466631806,-170.36,6.301e-05,2]
[344439791,1733466631816,-1200.0,6.4e-05,2]
[344439793,1733466631828,-200.0,6.5e-05,2]
[344439795,1733466631841,-639.23,6.549e-05,2]
[344439797,1733466631851,-200.0,6.6e-05,2]
[344439798,1733466631860,-162.72,6.635e-05,2]
[344439800,1733466631869,-200.0,6.7e-05,2]
[344439801,1733466631879,-150.0,6.749e-05,2]
[344439802,1733466631888,-265.39572685,6.8e-05,2]
[344439803,1733466631898,-200.0,6.8e-05,2]
[344439804,1733466631907,-1574.0,6.861e-05,2]
[344439805,1733466631918,-166.87,6.891e-05,2]
[344439806,1733466631927,-2500.0,6.9e-05,2]
[344439807,1733466631937,-747.0,6.9e-05,2]
[344439808,1733466631946,-500.0,6.973e-05,2]
[344439809,1733466631956,-208.8771516,6.988e-05,2]
[344439810,1733466631966,-2141.01594083,6.99e-05,2]
[344439811,1733466631975,-150.0,6.997e-05,2]
[344439812,1733466631985,-300.0,6.998e-05,3]
[344439813,1733466631994,-300.0,6.998e-05,3]
[344439814,1733466632004,-300.0,6.998e-05,3]
[344439815,1733466632014,-300.0,6.998e-05,3]
[344439816,1733466632024,-300.0,6.998e-05,3]
[344439817,1733466632034,-300.0,6.998e-05,3]
[344439818,1733466632043,-300.0,6.998e-05,2]
[344439819,1733466632053,-300.0,6.998e-05,2]
[344439820,1733466632062,-300.0,6.998e-05,2]
[344439821,1733466632071,-300.0,6.998e-05,2]
[344439822,1733466632082,-157.27323427,6.998e-05,2]
[344439823,1733466632094,-142.72676573,6.998e-05,2]
[344439824,1733466632104,-300.0,6.998e-05,2]
[344439825,1733466632113,-300.0,6.998e-05,2]
[344439826,1733466632123,-300.0,6.998e-05,3]
[344439827,1733466632133,-1435.698,6.998e-05,2]
[344439828,1733466632143,-5373.78373801,6.998e-05,2]
[344439829,1733466632191,-1730.11950921,6.998e-05,2]
[344439832,1733466637398,-413.68499999,6.998e-05,2]
[344439833,1733466637527,-242482.41175279,6.998e-05,2]
[344439834,1733466637537,-83858.00809311,6.999e-05,2]
[344439835,1733466637547,-268897.2642751,6.999e-05,2]
[344439836,1733466637557,-1026.17,6.999e-05,2]
[344439837,1733466637567,-506.0,7e-05,2]
[344439838,1733466637576,-1208915.60752497,7e-05,2]
[344439840,1733466639548,-260.17849933,7e-05,2]
[344439841,1733466639560,-981.01717607,7e-05,2]
[344439842,1733466639572,-1076.0,7e-05,2]
[344439846,1733466642459,-942.64699516,7e-05,2]
[344439847,1733466642583,-14713.8,7e-05,2]
[344439848,1733466642599,-10816.61358908,7e-05,2]
[344439849,1733466642729,-79672.95049378,7e-05,2]
[344439850,1733466642754,-1572.29516156,7e-05,2]
[344439851,1733466642793,-19096.0,7e-05,2]
[344439852,1733466642871,-1034.3555,7e-05,2]
[344440102,1733466645471,-3907.075,7e-05,2]
[344440135,1733466645796,-27349.45846052,7e-05,2]
[344440137,1733466645807,-68586.7,7e-05,2]
[344442354,1733466668739,751.18587479,0.00015,30]
[344443512,1733467086386,466.0,0.0001512,29]
[344443513,1733467111117,366.0,0.00018,60]
[344443515,1733467427750,-23900.0,5.872e-05,2]
[344443516,1733467427788,-305.49,5.919e-05,2]
[344443517,1733467427824,-624.07,5.996e-05,2]
[344443518,1733467427863,-500.0,6e-05,2]
[344443519,1733467427897,-250.0,6.036e-05,2]
[344443520,1733467427931,-250.0,6.08e-05,2]
[344443521,1733467427970,-1100.0,6.1e-05,2]
[344443522,1733467428005,-1600.0,6.2e-05,2]
[344443523,1733467428040,-390.98,6.213e-05,2]
[344443524,1733467428077,-2200.0,6.3e-05,2]
[344443525,1733467428113,-164.71,6.301e-05,2]
[344443526,1733467428147,-179.24,6.301e-05,2]
[344443527,1733467428182,-167.26,6.323e-05,2]
[344443528,1733467428570,-2800.0,6.4e-05,2]
[344443529,1733467428639,-500.0,6.5e-05,2]
[344443530,1733467428675,-150.0,6.566e-05,2]
[344443531,1733467428711,-500.0,6.6e-05,2]
[344443532,1733467428748,-500.0,6.7e-05,2]
[344443533,1733467428785,-2357.0,6.724e-05,2]
[344443534,1733467428821,-500.0,6.795e-05,2]
[344443535,1733467428857,-500.0,6.795e-05,2]
[344443536,1733467428892,-471.65381147,6.8e-05,2]
[344443537,1733467428928,-500.0,6.8e-05,2]
[344443538,1733467428965,-2500.0,6.9e-05,2]
[344443539,1733467429002,-1000.0,6.9e-05,2]
[344443540,1733467429038,-1000.0,6.9e-05,2]
[344443541,1733467429074,-1000.0,6.9e-05,2]
[344443542,1733467429109,-500.0,6.973e-05,2]
[344443543,1733467429143,-469.6191315,6.988e-05,2]
[344443544,1733467429179,-390.98,6.99e-05,2]
[344443545,1733467429215,-150.0,6.997e-05,2]
[344443546,1733467429251,-300.0,6.998e-05,3]
[344443547,1733467429287,-300.0,6.998e-05,3]
[344443548,1733467429324,-300.0,6.998e-05,3]
[344443549,1733467429359,-300.0,6.998e-05,3]
[344443550,1733467429396,-300.0,6.998e-05,3]
[344443551,1733467429431,-300.0,6.998e-05,3]
[344443552,1733467429469,-300.0,6.998e-05,2]
[344443553,1733467429505,-300.0,6.998e-05,2]
[344443554,1733467429541,-300.0,6.998e-05,2]
[344443555,1733467429576,-300.0,6.998e-05,2]
[344443556,1733467429611,-300.0,6.998e-05,2]
[344443557,1733467429645,-300.0,6.998e-05,2]
[344443558,1733467429680,-2274.3510348,6.998e-05,2]
[344443559,1733467429716,-1362.113,6.999e-05,2]
[344443560,1733467429750,-1053.64,6.999e-05,2]
[344443561,1733467429794,-506.0,7e-05,2]
[344443562,1733467429814,-23900.0,7e-05,2]
[344443563,1733467429831,-305.49,7e-05,2]
[344443564,1733467429866,-624.07,7e-05,2]
[344443565,1733467429881,-500.0,7e-05,2]
[344443566,1733467429915,-250.0,7e-05,2]
[344443567,1733467429926,-250.0,7e-05,2]
[344443568,1733467429946,-1100.0,7e-05,2]
[344443569,1733467429970,-1600.0,7e-05,2]
[344443570,1733467429982,-390.98,7e-05,2]
[344443571,1733467430002,-2200.0,7e-05,2]
[344443572,1733467430018,-164.71,7e-05,2]
[344443573,1733467430130,-179.24,7e-05,2]
[344443574,1733467430151,-167.26,7e-05,2]
[344443575,1733467430170,-2800.0,7e-05,2]
[344443576,1733467430276,-500.0,7e-05,2]
[344443577,1733467430287,-150.0,7e-05,2]
[344443578,1733467430310,-500.0,7e-05,2]
[344443579,1733467430374,-500.0,7e-05,2]
[344443580,1733467430432,-2357.0,7e-05,2]
[344443581,1733467430443,-500.0,7e-05,2]
[344443582,1733467430458,-500.0,7e-05,2]
[344443583,1733467430481,-471.65381147,7e-05,2]
[344443584,1733467430500,-500.0,7e-05,2]
[344443585,1733467430522,-2500.0,7e-05,2]
[344443586,1733467430537,-1000.0,7e-05,2]
[344443587,1733467430560,-1000.0,7e-05,2]
[344443588,1733467430582,-1000.0,7e-05,2]
[344443589,1733467430644,-500.0,7e-05,2]
[344443590,1733467430662,-469.6191315,7e-05,2]
[344443591,1733467430673,-390.98,7e-05,2]
[344443592,1733467430692,-150.0,7e-05,2]
[344443593,1733467430711,-300.0,7e-05,2]
[344443594,1733467430731,-300.0,7e-05,2]
[344443595,1733467430746,-300.0,7e-05,2]
[344443596,1733467430761,-300.0,7e-05,2]
[344443597,1733467430783,-300.0,7e-05,2]
[344443598,1733467430798,-300.0,7e-05,2]
[344443599,1733467430814,-300.0,7e-05,2]
[344443600,1733467430836,-300.0,7e-05,2]
[344443601,1733467430852,-300.0,7e-05,2]
[344443602,1733467430871,-300.0,7e-05,2]
[344443603,1733467430886,-300.0,7e-05,2]
[344443604,1733467430900,-300.0,7e-05,2]
[344443605,1733467430915,-2274.3510348,7e-05,2]
[344443606,1733467430925,-1362.113,7e-05,2]
[344443607,1733467430942,-1053.64,7e-05,2]
[344443608,1733467431035,-506.0,7e-05,2]
[344443609,1733467431073,-7565.78604446,7e-05,2]
[344443610,1733467457514,-20000.0,7e-05,2]
[344443612,1733467599762,942.4261037,0.000195,120]
[344443613,1733467627986,-2500.0,6.9e-05,2]
[344443614,1733467628007,-635.55723033,6.973e-05,2]
[344443615,1733467628028,-300.0,6.997e-05,2]
[344443616,1733467628050,-300.0,6.998e-05,2]
[344443617,1733467628073,-300.0,6.998e-05,2]
[344443618,1733467628096,-300.0,6.998e-05,2]
[344443619,1733467628120,-300.0,6.998e-05,3]
[344443620,1733467628145,-300.0,6.998e-05,3]
[344443621,1733467628168,-127.97064338,6.998e-05,3]
[344443622,1733467648160,-172.02935662,6.998e-05,3]
[344443623,1733467648183,-150.0,6.999e-05,2]
[344443624,1733467648206,-711.93437785,6.999e-05,2]
[344443638,1733467831613,-1500.0,6.665e-05,2]
[344443640,1733467831623,-250.0,6.694e-05,2]
[344443642,1733467831632,-765.41,6.778e-05,2]
[344443643,1733467831641,-2500.0,6.9e-05,2]
[344443645,1733467831650,-436.8240621,6.992e-05,2]
[344443646,1733467831659,-300.0,6.998e-05,2]
[344443647,1733467831669,-9903.66535844,6.999e-05,2]
[344443648,1733467831677,-150.0,6.999e-05,2]
[344443649,1733467831686,-212244.87668202,7e-05,2]
[344443650,1733467831724,-500.04139326,7e-05,2]
[344443664,1733467832382,-3457.49519897,7e-05,2]
[344443665,1733467832393,-1587.89459183,7e-05,2]
[344443666,1733467832408,-1866.636,7e-05,2]
[344443667,1733467832515,-2347.58009081,7e-05,2]
[344443668,1733467832582,-11743.03808001,7e-05,2]
[344443674,1733467837619,-101274.41594891,7e-05,2]
[344443675,1733467837801,-4041.06819477,7e-05,2]
[344443676,1733467837855,-573.45,7e-05,2]
[344443677,1733467837866,-1216.18096215,7e-05,2]
[344443678,1733467837879,-2997.05513562,7e-05,2]
[344443679,1733467838049,-1854.44162659,7e-05,2]
[344443864,1733467839828,-1180.80000536,7e-05,2]
[344443866,1733467839841,-274.86179865,7e-05,2]
[344443872,1733467839893,-1810.0,7e-05,2]
[344443874,1733467839904,-513.9545861,7e-05,2]
[344443876,1733467839916,-963.19752,7e-05,2]
[344443893,1733467840084,-4381.25527597,7e-05,2]
[344443937,1733467843144,-334.90000007,7e-05,2]
[344443939,1733467843156,-1972.34206507,7e-05,2]
[344443941,1733467843168,-12250.49704183,7e-05,2]
[344443946,1733467843213,-656.012,7e-05,2]
[344443958,1733467843322,-1214.51160301,7e-05,2]
[344443965,1733467843768,-4691.19998871,7e-05,2]
[344443969,1733467845662,-14196.99893269,7e-05,2]
[344443970,1733467845830,-354.20649141,7e-05,2]
[344443971,1733467845937,-4833.536324,7e-05,2]
[344443977,1733468837144,-250.0,6.287e-05,2]
[344443978,1733468837167,-158.6685943,6.31e-05,2]
[344443979,1733468852747,-141.3314057,6.31e-05,2]
[344443980,1733468852769,-1249.36040436,6.311e-05,2]
[344443989,1733469032148,-423.03,6.177e-05,2]
[344443990,1733469032159,-250.0,6.221e-05,2]
[344443991,1733469032168,-446.57,6.269e-05,2]
[344443992,1733469032177,-68.4,6.31e-05,2]
[344443993,1733469032238,-231.6,6.31e-05,2]
[344443994,1733469032247,-9693.49006445,6.311e-05,2]
[344444001,1733469038126,-3224.78685864,6.311e-05,2]
[344444002,1733469038137,-263.49543996,6.311e-05,2]
[344444006,1733469039929,-1054.20388456,6.311e-05,2]
[344444007,1733469039940,-3516.93119944,6.311e-05,2]
[344444008,1733469039954,-4897.73214859,6.311e-05,2]
[344444009,1733469039963,-7.76785141,6.358e-05,2]
[344444010,1733469040137,-171.47214859,6.358e-05,2]
[344444011,1733469040147,-387.67,6.375e-05,2]
[344444012,1733469040156,-500.0,6.685e-05,2]
[344444013,1733469040165,-327.10049552,6.8e-05,2]
[344444014,1733469040175,-2500.0,6.9e-05,2]
[344444015,1733469040184,-420.0,6.941e-05,2]
[344444016,1733469040194,-311.02613995,6.973e-05,2]
[344444017,1733469040203,-500.0,6.973e-05,2]
[344444018,1733469040212,-150.0,6.986e-05,2]
[344444019,1733469040222,-334.7273654,6.988e-05,2]
[344444020,1733469040232,-150.0,6.989e-05,2]
[344444021,1733469040241,-1030.33,6.99e-05,2]
[344444022,1733469040250,-21587.50314026,6.99e-05,2]
[344444023,1733469040259,-150.0,6.998e-05,2]
[344444024,1733469040268,-150.0,6.998e-05,2]
[344444025,1733469040277,-150.0,6.998e-05,2]
[344444026,1733469040291,-150.0,6.998e-05,3]
[344444027,1733469040301,-150.0,6.998e-05,3]
[344444028,1733469040310,-237.03779168,6.998e-05,3]
[344444029,1733469040319,-500.0,6.999e-05,2]
[344444030,1733469040331,-500.0,6.999e-05,2]
[344444031,1733469040341,-300.0,6.999e-05,2]
[344444032,1733469040351,-500.0,6.999e-05,2]
[344444033,1733469040361,-500.0,6.999e-05,2]
[344444034,1733469040372,-336.10159178,6.999e-05,2]
[344444035,1733469040382,-500.0,6.999e-05,2]
[344444036,1733469040392,-609.48845329,6.999e-05,2]
[344444037,1733469040404,-456.24154671,6.999e-05,2]
[344444038,1733469040418,-2406.83811543,6.999e-05,2]
[344444042,1733469042805,-8323.42653697,6.999e-05,2]
[344444044,1733469042814,-1829.52725787,6.999e-05,2]
[344444045,1733469042823,-505.0,7e-05,2]
[344444046,1733469042832,-1206.72764709,7e-05,2]
[344444047,1733469042856,-7358.5,7e-05,2]
[344444048,1733469042867,-2372.2958949,7e-05,2]
[344444049,1733469043204,-1078.88186558,7e-05,2]
[344444050,1733469043216,-16559.61296119,7e-05,2]
[344444051,1733469043228,-2930.0,7e-05,2]
[344444052,1733469043240,-24523.25,7e-05,2]
[344444053,1733469043252,-1668.02297108,7e-05,2]
[344444054,1733469043264,-993.12736041,7e-05,2]
[344444055,1733469043302,-7203.2600527,7e-05,2]
[344444056,1733469043329,-2140.441135,7e-05,2]
[344444057,1733469043341,-667.31819625,7e-05,2]
[344444058,1733469043406,-5767.26646263,7e-05,2]
[344444059,1733469043418,-11880.2065004,7e-05,2]
[344444060,1733469043430,-1118.89139193,7e-05,2]
[344444061,1733469043485,-86900.73135235,7e-05,2]
[344444076,1733469045777,-61343.0115,7e-05,2]
[344444077,1733469045820,-4092.97692077,7e-05,2]
[344444078,1733469045906,-458.03344995,7e-05,2]
[344444079,1733469045921,-270.7542876,7e-05,2]
[344444080,1733469045973,-1229.9399999,7e-05,2]
[344444081,1733469046045,-2536.90229612,7e-05,2]
[344444082,1733469046243,-15743.14776936,7e-05,2]
[344444136,1733469941062,-8633864.79903752,0.0002,120]
[344444137,1733469956597,-159.52855835,6.411e-05,2]
[344444139,1733469990120,2000.0,5e-05,2]
[344444140,1733470026147,-90.47144165,6.411e-05,2]
[344444141,1733470026170,-612.32,6.477e-05,2]
[344444142,1733470026190,-250.0,6.544e-05,2]
[344444143,1733470026212,-166.87,6.61e-05,2]
[344444144,1733470026234,-8592.60136436,6.627e-05,2]
[344444145,1733470031514,-308.52036097,6.627e-05,2]
[344444146,1733470052101,-292.34395405,6.627e-05,2]
[344444159,1733470232137,-250.0,6.574e-05,2]
[344444160,1733470232148,-1280.0,6.627e-05,2]
[344444161,1733470232389,-1950.0,6.627e-05,2]
[344444162,1733470232403,-1382.1,6.627e-05,2]
[344444163,1733470232434,-2620.3073268,6.627e-05,2]
[344444164,1733470232480,-3703.8422234,6.627e-05,2]
[344444165,1733470232493,-587.32737965,6.627e-05,2]
[344444660,1733470237947,-3182.95739077,6.627e-05,2]
[344444662,1733470237957,-193.84,6.795e-05,2]
[344444665,1733470237973,-194.51863934,6.795e-05,2]
[344444667,1733470237982,-2500.0,6.9e-05,2]
[344444669,1733470237992,-150.0,6.986e-05,2]
[344444671,1733470238001,-1021.32,6.999e-05,2]
[344444673,1733470238011,-150.0,6.999e-05,2]
[344444675,1733470238021,-553.0,7e-05,2]
[344444677,1733470238030,-40999.36396989,7e-05,2]
[344444681,1733470238064,-10170.46234573,7e-05,2]
[344444704,1733470238289,-716.19999999,7e-05,2]
[344444705,1733470238300,-20446.2,7e-05,2]
[344444739,1733470240142,-2395.20532192,7e-05,2]
[344444740,1733470240429,-8471.07702782,7e-05,2]
[344444741,1733470243000,-3642.8862825,7e-05,2]
[344444744,1733470243073,-301.47534227,7e-05,2]
[344444745,1733470243083,-11468.76297496,7e-05,2]
[344444746,1733470243094,-8080.26079,7e-05,2]
[344444747,1733470243212,-620.074,7e-05,2]
[344444766,1733470246012,-1640.4,7e-05,2]
[344444767,1733470246063,-2801.07059239,7e-05,2]
[344444768,1733470246074,-1511.8596607,7e-05,2]
[344444803,1733470250602,-292.29160126,7e-05,2]
[344444804,1733470250613,-1509.13905078,7e-05,2]
[344444805,1733470250625,-1230.46131981,7e-05,2]
[344444806,1733470250641,-1957.704,7e-05,2]
[344444809,1733470756865,-250.0,6.575e-05,2]
[344444810,1733470756899,-988.02,6.597e-05,2]
[344444811,1733470756935,-471.37,6.651e-05,2]
[344444812,1733470757016,-20952.59,6.699e-05,2]
[344444813,1733470824817,620.0,0.00018,60]
[344444814,1733470886900,-2947.41,6.699e-05,2]
[344444815,1733470896904,-586.46,6.766e-05,2]
[344444816,1733470896938,-611.98,6.792e-05,2]
[344444817,1733470907799,-250.0,6.839e-05,2]
[344444818,1733470907836,-2500.0,6.9e-05,2]
[344444819,1733470907870,-150.0,6.986e-05,2]
[344444820,1733470907908,-437.01881178,6.999e-05,2]
[344444821,1733470907945,-150.0,6.999e-05,2]
[344444822,1733470907981,-300.0,6.999e-05,2]
[344444823,1733470908017,-1000.0,7e-05,2]
[344444824,1733470908052,-500.0,7e-05,2]
[344444825,1733470908228,-21134.26237644,7e-05,2]
[344444826,1733470989908,-300.0,6.883e-05,2]
[344444827,1733470989945,-9400.0,6.884e-05,2]
[344444832,1733471156132,-250.0,6.68e-05,2]
[344444833,1733471156153,-2420.06603922,6.884e-05,2]
[344444834,1733471229135,-1033.96598154,6.884e-05,2]
[344444835,1733471253122,-5528.42555381,6.884e-05,2]
[344444841,1733471432439,-250.0,6.612e-05,2]
[344444842,1733471432449,-45.56834924,6.706e-05,2]
[344444843,1733471432461,-120.74165076,6.706e-05,2]
[344444844,1733471432470,-5517.54242543,6.884e-05,2]
[344444845,1733471432480,-2500.0,6.9e-05,2]
[344444846,1733471432490,-300.0,6.972e-05,2]
[344444847,1733471432500,-417.45834513,6.973e-05,2]
[344444848,1733471432509,-635.55723033,6.973e-05,2]
[344444849,1733471432519,-150.0,6.986e-05,2]
[344444850,1733471432528,-188.70034835,6.99e-05,2]
[344444851,1733471432562,-2557.11200561,6.99e-05,2]
[344444852,1733471432572,-978.77,6.999e-05,2]
[344444853,1733471432581,-150.0,6.999e-05,2]
[344444854,1733471432590,-94536.11799439,7e-05,2]
[344444855,1733471432601,-66826.19979176,7e-05,2]
[344444856,1733471432638,-775.87557787,7e-05,2]
[344444858,1733471432667,-4899.61178529,7e-05,2]
[344444873,1733471438173,-4931.93698966,7e-05,2]
[344444874,1733471438184,-1655.83572925,7e-05,2]
[344444875,1733471438267,-9936.78105238,7e-05,2]
[344444876,1733471438547,-16766.7147789,7e-05,2]
[344444908,1733471440416,-5943.11394862,7e-05,2]
[344444909,1733471440430,-783.988005,7e-05,2]
[344444910,1733471440442,-515.96,7e-05,2]
[344444940,1733471443499,-3166.35913934,7e-05,2]
[344444941,1733471443510,-6725.23788955,7e-05,2]
[344444942,1733471443530,-19515.50000001,7e-05,2]
[344444943,1733471443569,-4958.81472835,7e-05,2]
[344444944,1733471443580,-29475.0,7e-05,2]
[344444945,1733471443623,-6994.30870491,7e-05,2]
[344445114,1733471768072,150.0,8.049e-05,5]
[344445116,1733471822271,150.0,8.049e-05,5]
[344445117,1733471858144,6026.72103673,9e-05,10]
[344445118,1733471881473,239.66743376,8.049e-05,5]
[344445122,1733472067389,-300.0,6e-05,2]
[344445123,1733472067413,-400.0,6e-05,2]
[344445124,1733472067436,-250.0,6.091e-05,2]
[344445125,1733472067460,-700.0,6.1e-05,2]
[344445126,1733472067483,-800.0,6.1e-05,2]
[344445127,1733472067507,-523.11,6.166e-05,2]
[344445128,1733472067531,-1000.0,6.2e-05,2]
[344445129,1733472067553,-1300.0,6.2e-05,2]
[344445130,1733472067575,-5006.16959853,6.2e-05,2]
[344445131,1733472067599,-250.0,6.233e-05,2]
[344445132,1733472067621,-9470.72040147,6.238e-05,2]
[344445133,1733472429104,-300.0,6.337e-05,2]
[344445134,1733472429125,-97.03676714,6.338e-05,2]
[344445135,1733472442207,-1804.47837447,6.338e-05,2]
[344445136,1733472568135,-249.9,6e-05,2]
[344445145,1733472632254,-250.1,6e-05,2]
[344445147,1733472632265,-1100.0,6.1e-05,2]
[344445149,1733472632277,-250.0,6.147e-05,2]
[344445151,1733472632288,-250.0,6.159e-05,2]
[344445153,1733472632299,-3985.28442568,6.192e-05,2]
[344445166,1733472632413,-3499.92642618,6.192e-05,2]
[344445281,1733472635470,-275.38010487,6.192e-05,2]
[344445323,1733472638427,-8228.83910856,6.192e-05,2]
[344445324,1733472638440,-55122.0000003,6.192e-05,2]
[344445325,1733472638591,-6415.49534296,6.192e-05,2]
[344445326,1733472638646,-2716.7749053,6.192e-05,2]
[344445328,1733472640368,-17528.45968615,6.192e-05,2]
[344445329,1733472640378,-1700.0,6.2e-05,2]
[344445330,1733472640388,-2200.0,6.3e-05,2]
[344445331,1733472640399,-17877.05553584,6.338e-05,2]
[344445332,1733472640413,-1453.18368887,6.338e-05,2]
[344445333,1733472640425,-1163.4349979,6.338e-05,2]
[344445334,1733472640437,-1504.81063578,6.338e-05,2]
[344445335,1733472640448,-538.78936422,6.4e-05,2]
[344445336,1733472640460,-2261.21063578,6.4e-05,2]
[344445337,1733472640471,-500.0,6.5e-05,2]
[344445338,1733472640483,-500.0,6.6e-05,2]
[344445339,1733472640493,-500.0,6.7e-05,2]
[344445340,1733472640503,-500.0,6.8e-05,2]
[344445341,1733472640512,-2500.0,6.9e-05,2]
[344445342,1733472640522,-1185.0,6.9e-05,2]
[344445344,1733472640532,-150.0,6.923e-05,2]
[344445345,1733472640542,-1893.0,6.924e-05,2]
[344445346,1733472640552,-816.0,6.924e-05,2]
[344445347,1733472640561,-1252.0,6.924e-05,2]
[344445348,1733472640571,-3761.0,6.924e-05,2]
[344445349,1733472640580,-3529.0,6.924e-05,2]
[344445351,1733472640590,-535.0,6.924e-05,2]
[344445352,1733472640599,-973.0,6.924e-05,2]
[344445353,1733472640609,-3348.73243285,6.934e-05,2]
[344445354,1733472640620,-287.79848818,6.934e-05,2]
[344445364,1733472643314,-2327.46907897,6.934e-05,2]
[344445365,1733472643324,-810.15039717,6.934e-05,2]
[344445371,1733472646330,-355.84960283,6.934e-05,2]
[344445372,1733472646339,-135.05039717,6.934e-05,2]
[344445373,1733472646351,-138.04260283,6.934e-05,2]
[344445374,1733472646360,-11451.89418274,6.934e-05,2]
[344445375,1733472646371,-2263.10581726,6.934e-05,2]
[344445376,1733472646380,-1098.0,6.934e-05,2]
[344445377,1733472646392,-523.11,6.937e-05,2]
[344445378,1733472646406,-500.0,6.973e-05,2]
[344445379,1733472646416,-150.0,6.986e-05,2]
[344445380,1733472646426,-150.0,6.998e-05,3]
[344445381,1733472646435,-150.0,6.998e-05,3]
[344445382,1733472646445,-150.0,6.998e-05,3]
[344445383,1733472646455,-150.0,6.998e-05,3]
[344445384,1733472646466,-150.0,6.998e-05,3]
[344445385,1733472646475,-150.0,6.998e-05,3]
[344445386,1733472646484,-150.0,6.998e-05,3]
[344445387,1733472646496,-150.0,6.998e-05,3]
[344445388,1733472646505,-150.0,6.998e-05,3]
[344445389,1733472646515,-150.0,6.998e-05,2]
[344445390,1733472646525,-150.0,6.998e-05,2]
[344445391,1733472646534,-150.0,6.998e-05,2]
[344445392,1733472646545,-150.0,6.998e-05,2]
[344445393,1733472646561,-67.78073274,6.998e-05,2]
[344445395,1733472646574,-82.21926726,6.998e-05,2]
[344445397,1733472646584,-150.0,6.998e-05,2]
[344445398,1733472646594,-150.0,6.998e-05,2]
[344445399,1733472646604,-150.0,6.998e-05,2]
[344445400,1733472646614,-191.38963844,6.998e-05,2]
[344445401,1733472646624,-1229.004,6.998e-05,2]
[344445402,1733472646634,-2365.1714323,7e-05,2]
[344445403,1733472646648,-2384.858478,7e-05,2]
[344445404,1733472646660,-5956.61865,7e-05,2]